bitfinex-derivatives/quotes_BTCF0:USTF0_20241029
["timestamp","ask_amount","ask_price","bid_price","bid_amount"]
[1730203346540,0.09172879,71435.0,71434.0,0.236604]
[1730203349544,0.09172879,71435.0,71434.0,0.10671441]
[1730203350652,0.070023,71437.0,71436.0,0.070021]
[1730203350960,0.02503364,71444.0,71443.0,0.070017]
[1730203351146,0.0755,71453.0,71449.0,0.070011]
[1730203351448,0.0755,71453.0,71449.0,0.6829131]
[1730203351649,0.0755,71453.0,71449.0,0.7276106]
[1730203351954,0.04257443,71453.0,71452.0,0.070008]
[1730203352160,0.04257443,71453.0,71452.0,0.26030647]
[1730203352345,0.04257443,71453.0,71452.0,0.32205052]
[1730203352547,0.07,71460.0,71459.0,0.07]
[1730203352854,0.16414821,71460.0,71459.0,0.07]
[1730203353649,0.069997,71464.0,71457.0,0.09414821]
[1730203353852,0.09771955,71466.0,71463.0,0.3608]
[1730203353853,0.0733,71466.0,71463.0,0.3608]
[1730203354050,0.09414821,71470.0,71463.0,0.3608]
[1730203354261,0.069992,71468.0,71467.0,0.069993]
[1730203355864,0.069995,71466.0,71465.0,0.069995]
[1730203356152,0.069992,71468.0,71467.0,0.069993]
[1730203356353,0.069995,71465.0,71464.0,0.069996]
[1730203356557,0.16414321,71465.0,71464.0,0.069996]
[1730203357859,0.16414321,71465.0,71464.0,0.070996]
[1730203361448,0.09414821,71468.0,71464.0,0.001]
[1730203361644,0.069993,71467.0,71466.0,0.069994]
[1730203363355,0.070993,71467.0,71466.0,0.069994]
[1730203372555,0.070993,71467.0,71466.0,0.13177255]
[1730203372752,0.001,71467.0,71466.0,0.13177255]
[1730203376657,0.070993,71467.0,71466.0,0.13177255]
[1730203378964,0.001,71467.0,71466.0,0.13177255]
[1730203380958,0.070993,71467.0,71466.0,0.13177255]
[1730203381370,0.10526971,71467.0,71466.0,0.13177255]
[1730203382262,0.070993,71467.0,71466.0,0.30806549]
[1730203382574,0.13277155,71467.0,71466.0,0.069994]
[1730203384670,0.069996,71465.0,71464.0,0.13961414]
[1730203384865,0.069996,71465.0,71464.0,0.069995]
[1730203385377,0.069996,71465.0,71464.0,0.24628968]
[1730203385675,0.069996,71465.0,71464.0,0.13966212]
[1730203386090,0.069996,71465.0,71464.0,0.14066212]
[1730203386388,0.069996,71465.0,71464.0,0.070995]
[1730203386586,0.07180708,71465.0,71464.0,0.070995]
[1730203387592,0.07180708,71465.0,71464.0,0.072995]
[1730203387982,0.07180708,71465.0,71464.0,0.003]
[1730203390290,0.16786628,71465.0,71464.0,0.003]
[1730203390490,0.13358563,71465.0,71464.0,0.003]
[1730203392093,0.07180708,71465.0,71464.0,0.003]
[1730203392990,0.07180708,71465.0,71464.0,0.072996]
[1730203394199,0.10608722,71465.0,71464.0,0.072996]
[1730203397299,0.07180708,71465.0,71464.0,0.072996]
[1730203401200,0.13358563,71465.0,71464.0,0.072996]
[1730203403003,0.13358563,71465.0,71464.0,0.003]
[1730203405303,0.16786604,71465.0,71464.0,0.003]
[1730203405810,0.13358563,71465.0,71464.0,0.003]
[1730203406210,0.13358563,71465.0,71464.0,0.072996]
[1730203408921,0.21083414,71465.0,71464.0,0.072996]
[1730203410719,0.16786601,71465.0,71464.0,0.072996]
[1730203410914,0.13358563,71465.0,71464.0,0.072996]
[1730203411322,0.00181108,71465.0,71464.0,0.13477455]
[1730203412114,0.03609154,71465.0,71464.0,0.13477455]
[1730203412329,0.00181108,71465.0,71464.0,0.20444167]
[1730203413211,0.00181108,71465.0,71464.0,0.31066278]
[1730203413913,0.00181108,71465.0,71464.0,0.13477455]
[1730203414121,0.00181108,71465.0,71464.0,0.20444167]
[1730203414322,0.00181108,71465.0,71464.0,0.31059358]
[1730203414707,0.00181108,71465.0,71464.0,0.24092646]
[1730203416422,0.069988,71473.0,71472.0,0.069988]
[1730203416631,0.069988,71473.0,71472.0,0.13176655]
[1730203416922,0.069982,71479.0,71478.0,0.069983]
[1730203417821,0.09483837,71479.0,71478.0,0.069983]
[1730203418521,0.10783837,71479.0,71478.0,0.069983]
[1730203419021,0.11983837,71479.0,71478.0,0.070983]
[1730203422221,0.11983837,71479.0,71478.0,0.17457393]
[1730203422417,0.094982,71479.0,71478.0,0.13276155]
[1730203422618,0.094982,71479.0,71478.0,0.18851139]
[1730203423119,0.094982,71479.0,71478.0,0.18844384]
[1730203424217,0.094982,71479.0,71478.0,0.13276155]
[1730203424422,0.081982,71479.0,71478.0,0.18944384]
[1730203424723,0.081982,71479.0,71478.0,0.13476155]
[1730203424724,0.069982,71479.0,71478.0,0.13476155]
[1730203424919,0.699361,71526.0,71478.0,0.06477855]
[1730203425117,0.699361,71526.0,71490.0,0.06997]
[1730203425118,0.069971,71491.0,71490.0,0.06997]
[1730203425321,0.13174855,71492.0,71491.0,0.06997]
[1730203425522,0.13174855,71492.0,71491.0,0.11167827]
[1730203426312,0.069968,71494.0,71493.0,0.069967]
[1730203427117,0.00209878,71495.0,71491.0,0.06177855]
[1730203427313,0.00209878,71495.0,71490.0,0.0956]
[1730203427314,0.07721678,71494.0,71490.0,0.0956]
[1730203427521,0.07721678,71493.0,71492.0,0.069969]
[1730203428318,0.07721678,71493.0,71492.0,0.13174755]
[1730203429027,0.03426626,71493.0,71492.0,0.13174755]
[1730203429331,0.03926626,71493.0,71492.0,0.13174755]
[1730203430314,0.04526626,71493.0,71492.0,0.13174755]
[1730203430631,0.011,71493.0,71492.0,0.13174755]
[1730203431219,0.04526552,71493.0,71492.0,0.13174755]
[1730203434526,0.04526552,71493.0,71492.0,0.22730755]
[1730203435426,0.011,71493.0,71492.0,0.13174755]
[1730203435728,0.080968,71493.0,71492.0,0.22730755]
[1730203441633,0.080968,71493.0,71492.0,0.13174755]
[1730203444228,0.080968,71493.0,71492.0,0.49254755]
[1730203444827,0.080968,71493.0,71492.0,0.13174755]
[1730203445132,0.080968,71493.0,71492.0,0.49254755]
[1730203446326,0.080968,71493.0,71492.0,0.430769]
[1730203454336,0.080968,71493.0,71492.0,0.069969]
[1730203455541,0.011,71493.0,71491.0,0.42257855]
[1730203455729,0.148169,71492.0,71491.0,0.3608]
[1730203455935,0.308169,71492.0,71491.0,0.3608]
[1730203456835,0.308169,71492.0,71491.0,0.43077]
[1730203457539,0.312169,71492.0,71491.0,0.43077]
[1730203457842,0.317169,71492.0,71491.0,0.43077]
[1730203458241,0.39438524,71492.0,71491.0,0.43077]
[1730203460132,0.39438522,71492.0,71491.0,0.43077]
[1730203460537,0.069973,71488.0,71487.0,0.069973]
[1730203460735,0.069978,71485.0,71484.0,0.069976]
[1730203461439,0.14719422,71485.0,71484.0,0.069976]
[1730203462147,0.14719422,71485.0,71484.0,0.071976]
[1730203463645,0.14719422,71485.0,71484.0,0.073976]
[1730203463955,0.20897277,71485.0,71484.0,0.004]
[1730203464340,0.20898397,71485.0,71484.0,0.004]
[1730203465243,0.13175655,71485.0,71484.0,0.004]
[1730203469145,0.55143655,71485.0,71484.0,0.004]
[1730203472262,0.13175655,71485.0,71484.0,0.004]
[1730203472860,0.069978,71485.0,71484.0,0.004]
[1730203473259,0.13175655,71485.0,71484.0,0.004]
[1730203474358,0.069978,71485.0,71484.0,0.073977]
[1730203475562,0.13175155,71488.0,71487.0,0.069974]
[1730203477060,0.13275155,71488.0,71487.0,0.069974]
[1730203477775,0.069976,71485.0,71484.0,0.002]
[1730203477964,0.069976,71485.0,71484.0,0.071977]
[1730203478164,0.069976,71485.0,71484.0,0.069977]
[1730203479673,0.069976,71485.0,71484.0,0.071977]
[1730203480376,0.069976,71485.0,71484.0,0.073977]
[1730203480377,0.10424701,71485.0,71484.0,0.073977]
[1730203485075,0.03427101,71485.0,71484.0,0.073977]
[1730203485272,0.07722732,71485.0,71484.0,0.073977]
[1730203485476,0.03427101,71485.0,71484.0,0.073977]
[1730203486482,0.04295566,71485.0,71484.0,0.073977]
[1730203486780,0.069965,71496.0,71494.0,0.069966]
[1730203486991,0.07721838,71495.0,71494.0,0.069966]
[1730203487172,0.07721838,71495.0,71494.0,0.13174455]
[1730203487372,0.069965,71496.0,71494.0,0.13174455]
[1730203487984,0.086965,71496.0,71494.0,0.13274455]
[1730203488877,0.069966,71495.0,71494.0,0.13274455]
[1730203489379,0.069966,71495.0,71494.0,0.070966]
[1730203489976,0.077966,71495.0,71494.0,0.070966]
[1730203490378,0.077966,71495.0,71494.0,0.069966]
[1730203490586,0.084966,71495.0,71494.0,0.070966]
[1730203491380,0.084966,71495.0,71494.0,0.001]
[1730203493681,0.084966,71495.0,71494.0,0.070967]
[1730203495483,0.16218458,71495.0,71494.0,0.070967]
[1730203496077,0.16218458,71495.0,71494.0,0.001]
[1730203496689,0.16218458,71495.0,71494.0,0.070967]
[1730203496885,0.22396313,71495.0,71494.0,0.070967]
[1730203497387,0.22396313,71495.0,71494.0,0.001]
[1730203497990,0.22396313,71495.0,71494.0,0.070973]
[1730203499190,0.22396313,71495.0,71494.0,0.001]
[1730203500484,0.28786313,71495.0,71494.0,0.001]
[1730203501989,0.34964168,71495.0,71494.0,0.001]
[1730203502381,0.2724231,71495.0,71494.0,0.001]
[1730203502587,0.21064455,71495.0,71494.0,0.001]
[1730203504083,0.2724231,71495.0,71494.0,0.001]
[1730203504379,0.21064455,71495.0,71494.0,0.001]
[1730203509982,0.27394455,71495.0,71494.0,0.001]
[1730203511692,0.015,71495.0,71494.0,0.13274555]
[1730203512092,0.015,71495.0,71494.0,0.17452489]
[1730203514204,0.01666582,71495.0,71494.0,0.17452489]
[1730203514805,0.01666582,71495.0,71494.0,0.19997143]
[1730203515704,0.01666582,71495.0,71494.0,0.15819209]
[1730203517399,0.09387796,71495.0,71494.0,0.15819209]
[1730203518603,0.05093006,71495.0,71494.0,0.15819209]
[1730203518996,0.05093007,71495.0,71494.0,0.15819209]
[1730203520197,0.09466647,71495.0,71494.0,0.08079463]
[1730203520498,0.09466647,71495.0,71494.0,0.15076163]
[1730203522503,0.09545486,71495.0,71494.0,0.15076163]
[1730203523003,0.09221212,71495.0,71494.0,0.15076163]
[1730203523202,0.09579852,71495.0,71494.0,0.15076163]
[1730203523798,0.09579847,71495.0,71494.0,0.15076163]
[1730203525506,0.09579847,71495.0,71494.0,0.19246857]
[1730203525507,0.0185864,71495.0,71494.0,0.19246857]
[1730203527605,0.0185864,71495.0,71494.0,0.15076163]
[1730203528529,0.0885524,71495.0,71494.0,0.15076163]
[1730203530605,0.0885524,71495.0,71494.0,0.19246857]
[1730203531413,0.3608,71505.0,71494.0,0.19246857]
[1730203531414,0.430756,71505.0,71494.0,0.62602807]
[1730203531712,0.430756,71505.0,71504.0,0.069957]
[1730203531898,0.069956,71505.0,71504.0,0.069957]
[1730203532301,0.43284908,71511.0,71510.0,0.069951]
[1730203532302,0.00209808,71511.0,71510.0,0.069951]
[1730203532504,0.0266402,71511.0,71510.0,0.069951]
[1730203532712,0.00209808,71511.0,71510.0,0.069951]
[1730203533118,0.07204808,71511.0,71510.0,0.069951]
[1730203533609,0.1063067,71511.0,71510.0,0.069951]
[1730203534002,0.1163067,71511.0,71510.0,0.069951]
[1730203535208,0.01209808,71511.0,71510.0,0.069951]
[1730203535411,0.01809808,71511.0,71510.0,0.070951]
[1730203535613,0.08804808,71511.0,71510.0,0.070951]
[1730203535921,0.01809808,71511.0,71510.0,0.070951]
[1730203537208,0.08804808,71511.0,71510.0,0.070951]
[1730203537606,0.12230634,71511.0,71510.0,0.070951]
[1730203540210,0.12230634,71511.0,71510.0,0.13272955]
[1730203540520,0.08804808,71511.0,71510.0,0.13272955]
[1730203542622,0.01809808,71511.0,71510.0,0.13272955]
[1730203543527,0.016,71511.0,71510.0,0.13272955]
[1730203545621,0.016,71511.0,71510.0,0.22784955]
[1730203547622,0.09319582,71511.0,71510.0,0.22784955]
[1730203547925,0.09419582,71511.0,71510.0,0.22784955]
[1730203548136,0.051257,71511.0,71510.0,0.22784955]
[1730203548530,0.017,71511.0,71510.0,0.22784955]
[1730203548726,0.017,71511.0,71510.0,0.64736955]
[1730203548727,0.051257,71511.0,71510.0,0.64736955]
[1730203549023,0.051257,71511.0,71510.0,0.64836955]
[1730203549024,0.09319516,71511.0,71510.0,0.64836955]
[1730203549917,0.08419516,71511.0,71510.0,0.64736955]
[1730203550118,0.08419516,71511.0,71510.0,0.65036955]
[1730203550716,0.037257,71511.0,71510.0,0.64936955]
[1730203550920,0.037257,71511.0,71510.0,0.587591]
[1730203551121,0.037257,71511.0,71510.0,0.64936955]
[1730203551422,0.034257,71511.0,71510.0,0.64936955]
[1730203551617,0.034257,71511.0,71510.0,0.65236955]
[1730203552411,0.0598,71521.0,71510.0,0.65236955]
[1730203552625,0.14712908,71520.0,71519.0,0.069942]
[1730203553525,0.07718708,71520.0,71519.0,0.069942]
[1730203553734,0.08318708,71520.0,71519.0,0.13272055]
[1730203553922,0.04025312,71520.0,71519.0,0.13272055]
[1730203554117,0.04893411,71520.0,71519.0,0.06277855]
[1730203554320,0.08318723,71520.0,71519.0,0.13272055]
[1730203554921,0.03944542,71520.0,71519.0,0.9139791]
[1730203555127,0.006,71520.0,71519.0,0.93863585]
[1730203555317,0.006,71520.0,71519.0,0.99993585]
[1730203555523,0.069931,71531.0,71519.0,0.99993585]
[1730203555733,0.069931,71531.0,71530.0,0.17329072]
[1730203555931,0.069931,71531.0,71530.0,0.26841072]
[1730203556229,0.069931,71531.0,71530.0,0.22683055]
[1730203556425,0.069931,71531.0,71530.0,0.17329072]
[1730203556625,0.07154048,71531.0,71530.0,0.165052]
[1730203557024,0.07154048,71531.0,71530.0,0.22683055]
[1730203557328,0.07233626,71531.0,71530.0,0.13171055]
[1730203557532,0.07233626,71531.0,71530.0,0.22683055]
[1730203557831,0.00240526,71531.0,71530.0,0.22683055]
[1730203558031,0.00240526,71531.0,71530.0,0.26841072]
[1730203558227,0.00240526,71531.0,71530.0,0.22683055]
[1730203558728,0.00240526,71531.0,71530.0,0.26841072]
[1730203558931,0.00240526,71531.0,71530.0,0.22683055]
[1730203559125,0.00240526,71531.0,71530.0,0.26838923]
[1730203559424,0.00640526,71531.0,71530.0,0.26838923]
[1730203560333,0.00640526,71531.0,71530.0,0.26839652]
[1730203560731,0.00640526,71531.0,71530.0,0.22683055]
[1730203561725,0.00640526,71531.0,71530.0,0.64623055]
[1730203561927,0.00640526,71531.0,71530.0,0.165052]
[1730203562234,0.00640526,71531.0,71530.0,0.28224876]
[1730203562537,0.00640526,71531.0,71530.0,0.22683055]
[1730203566528,0.07633626,71531.0,71530.0,0.165052]
[1730203566934,0.07633626,71531.0,71530.0,0.22683055]
[1730203567434,0.00640526,71531.0,71530.0,0.22683055]
[1730203568335,0.00640526,71531.0,71530.0,0.13171055]
[1730203568634,0.00640526,71531.0,71530.0,0.22683055]
[1730203570430,0.00640526,71531.0,71530.0,0.2886091]
[1730203570736,0.00640526,71531.0,71530.0,0.22683055]
[1730203572836,0.00240526,71531.0,71530.0,0.22683055]
[1730203573425,0.00240526,71531.0,71530.0,0.069932]
[1730203573630,0.00240526,71531.0,71530.0,0.13171055]
[1730203573833,0.00240526,71531.0,71530.0,0.22679055]
[1730203574432,0.07233626,71531.0,71530.0,0.22679055]
[1730203574947,0.00240526,71531.0,71530.0,0.22679055]
[1730203575133,0.00240526,71531.0,71530.0,0.13171055]
[1730203575341,0.00240526,71531.0,71530.0,0.22679055]
[1730203576434,0.00240526,71531.0,71530.0,0.13171055]
[1730203576635,0.00240526,71531.0,71530.0,0.22679055]
[1730203577036,0.07233626,71531.0,71530.0,0.165012]
[1730203577332,0.07233626,71531.0,71530.0,0.22679055]
[1730203578143,0.07233626,71531.0,71530.0,0.26834971]
[1730203578144,0.00240526,71531.0,71530.0,0.26834971]
[1730203578644,0.07233626,71531.0,71530.0,0.165012]
[1730203579947,0.07233626,71531.0,71530.0,0.069932]
[1730203581536,0.07233626,71531.0,71530.0,0.11157718]
[1730203582046,0.07233626,71531.0,71530.0,0.069932]
[1730203582242,0.07233626,71531.0,71530.0,0.11157718]
[1730203583349,0.07233626,71531.0,71530.0,0.069932]
[1730203583941,0.07233626,71531.0,71530.0,0.1116011]
[1730203584142,0.07233626,71531.0,71530.0,0.069932]
[1730203584439,0.069933,71529.0,71528.0,0.0018]
[1730203584638,0.069933,71529.0,71515.0,0.08359814]
[1730203584639,0.13171155,71529.0,71520.0,0.05541821]
[1730203584841,0.069946,71515.0,71513.0,0.05541821]
[1730203585045,0.24577855,71514.0,71511.0,0.05541821]
[1730203585346,0.06995,71511.0,71510.0,0.069951]
[1730203586144,0.069953,71508.0,71507.0,0.069954]
[1730203586350,0.069953,71508.0,71507.0,0.13173255]
[1730203587048,0.1042112,71508.0,71507.0,0.13173255]
[1730203587256,0.07235826,71508.0,71507.0,0.13173255]
[1730203587442,0.07235826,71508.0,71507.0,0.14573255]
[1730203587641,0.07335826,71508.0,71507.0,0.15973255]
[1730203587850,0.00340526,71508.0,71507.0,0.52053255]
[1730203588748,0.00340526,71508.0,71507.0,0.94005255]
[1730203589048,0.00340526,71508.0,71507.0,1.00225255]
[1730203589360,0.00340526,71508.0,71507.0,1.09721255]
[1730203590253,0.00340526,71508.0,71507.0,0.67769255]
[1730203591645,0.00532534,71508.0,71507.0,0.67769255]
[1730203593652,0.00532534,71508.0,71507.0,1.09721255]
[1730203595956,0.00532534,71508.0,71507.0,1.1669026]
[1730203596655,0.00532534,71508.0,71507.0,1.20141706]
[1730203596964,0.00532534,71508.0,71507.0,1.16650565]
[1730203597161,0.00532534,71508.0,71507.0,0.74698565]
[1730203598152,0.00532534,71508.0,71507.0,0.85127078]
[1730203599360,0.00532534,71508.0,71507.0,0.85124685]
[1730203600061,0.069947,71515.0,71514.0,0.069947]
[1730203600259,0.069947,71515.0,71514.0,0.49252555]
[1730203600561,0.0645,71522.0,71521.0,0.06994]
[1730203600562,0.134441,71522.0,71521.0,0.06994]
[1730203600752,0.0645,71522.0,71521.0,0.13171855]
[1730203601762,0.0645,71522.0,71521.0,0.14571855]
[1730203601763,0.0655,71522.0,71521.0,0.14571855]
[1730203602065,0.0655,71522.0,71521.0,0.15971855]
[1730203602563,0.0655,71522.0,71521.0,0.18515982]
[1730203602757,0.001,71522.0,71521.0,0.18515982]
[1730203603064,0.001,71522.0,71521.0,0.24693837]
[1730203603267,0.001,71522.0,71521.0,0.18515982]
[1730203606055,0.001,71522.0,71521.0,0.24693837]
[1730203606960,0.001,71522.0,71521.0,0.54595982]
[1730203607160,0.001,71522.0,71521.0,0.60773837]
[1730203608958,0.001,71522.0,71521.0,0.91192627]
[1730203611768,0.001,71522.0,71521.0,0.57910127]
[1730203611963,0.001,71522.0,71521.0,0.64087982]
[1730203612658,0.001,71522.0,71521.0,0.70265837]
[1730203613054,0.3608,71549.0,71521.0,1.42773312]
[1730203613260,0.06992,71542.0,71541.0,0.069917]
[1730203613453,0.0584,71548.0,71541.0,0.069917]
[1730203613652,0.069915,71547.0,71546.0,0.069916]
[1730203614962,0.069915,71547.0,71546.0,0.070916]
[1730203615269,0.077915,71547.0,71546.0,0.002]
[1730203617666,0.077915,71547.0,71546.0,0.071916]
[1730203618062,0.008,71547.0,71546.0,0.13369455]
[1730203618474,0.008,71547.0,71546.0,0.071916]
[1730203618967,0.077915,71547.0,71546.0,0.071916]
[1730203619359,0.008,71547.0,71546.0,0.13369455]
[1730203620460,0.077915,71547.0,71546.0,0.13369455]
[1730203622166,0.008,71547.0,71546.0,0.13369455]
[1730203623074,0.04224147,71547.0,71546.0,0.13369455]
[1730203623366,0.04224147,71547.0,71546.0,0.49449455]
[1730203623867,0.008,71547.0,71546.0,0.49449455]
[1730203624067,0.04223938,71547.0,71546.0,0.49349455]
[1730203624367,0.0584,71548.0,71546.0,0.42357855]
[1730203624571,0.006,71547.0,71546.0,0.49449455]
[1730203625068,0.04023938,71547.0,71546.0,0.49449455]
[1730203625270,0.006,71547.0,71546.0,0.49449455]
[1730203625466,0.006,71547.0,71546.0,0.49349455]
[1730203625671,0.0644,71548.0,71547.0,0.069915]
[1730203627472,0.0584,71548.0,71547.0,0.069915]
[1730203628170,0.0584,71548.0,71547.0,0.071915]
[1730203628171,0.0644,71548.0,71547.0,0.071915]
[1730203629772,0.09864008,71548.0,71547.0,0.071915]
[1730203630158,0.0644,71548.0,71547.0,0.071915]
[1730203631662,0.069928,71535.0,71529.0,0.09484]
[1730203631872,0.069931,71532.0,71531.0,0.06993]
[1730203632175,0.069931,71532.0,71526.0,0.09693692]
[1730203632176,0.06177855,71532.0,71526.0,0.09693692]
[1730203632376,0.1224,71534.0,71530.0,0.13170955]
[1730203632377,0.069931,71531.0,71530.0,0.13170955]
[1730203632584,0.192331,71534.0,71533.0,0.069929]
[1730203632778,0.192331,71534.0,71533.0,0.13170755]
[1730203634379,0.192331,71534.0,71533.0,0.13570755]
[1730203634790,0.192331,71534.0,71533.0,0.13970755]
[1730203637683,0.192331,71534.0,71533.0,0.077929]
[1730203639785,0.129431,71534.0,71533.0,0.13970755]
[1730203639976,0.0595,71534.0,71533.0,0.13970755]
[1730203640377,0.129428,71534.0,71533.0,0.13970755]
[1730203645486,0.0595,71534.0,71533.0,0.13970755]
[1730203646886,0.0595,71534.0,71533.0,0.24294278]
[1730203647095,0.0595,71534.0,71533.0,0.13970755]
[1730203647685,0.0595,71534.0,71533.0,0.20910433]
[1730203648088,0.0595,71534.0,71533.0,0.23367379]
[1730203648286,0.0595,71534.0,71533.0,0.16427701]
[1730203648691,0.069925,71537.0,71533.0,0.16427701]
[1730203648884,0.069925,71537.0,71536.0,0.069926]
[1730203650700,0.13170355,71537.0,71536.0,0.069926]
[1730203650991,0.13170355,71537.0,71536.0,0.070926]
[1730203651394,0.13170355,71537.0,71536.0,0.001]
[1730203651698,0.13170355,71537.0,71536.0,0.070926]
[1730203652592,0.13170355,71537.0,71536.0,0.072926]
[1730203654509,0.069925,71537.0,71536.0,0.072926]
[1730203656497,0.15653855,71537.0,71516.0,0.06939678]
[1730203656703,0.06177855,71517.0,71515.0,0.0243609]
[1730203656895,0.06177855,71517.0,71512.0,0.06177855]
[1730203657203,0.069947,71515.0,71514.0,0.069947]
[1730203657596,0.06177855,71517.0,71512.0,0.08612456]
[1730203657904,0.13172355,71517.0,71515.0,0.069946]
[1730203658110,0.13172355,71517.0,71516.0,0.014]
[1730203658696,0.06177855,71517.0,71514.0,0.014]
[1730203658891,0.069948,71513.0,71512.0,0.014]
[1730203659096,0.069948,71513.0,71512.0,0.028]
[1730203659605,0.069948,71513.0,71512.0,0.014]
[1730203661002,0.13272255,71517.0,71516.0,0.014]
[1730203661593,0.13272255,71517.0,71512.0,0.014]
[1730203661594,0.070948,71513.0,71512.0,0.028]
[1730203662198,0.070948,71513.0,71512.0,0.014]
[1730203663005,0.13272255,71517.0,71516.0,0.014]
[1730203664596,0.070948,71513.0,71512.0,0.028]
[1730203664797,0.070948,71513.0,71512.0,0.458749]
[1730203665103,0.001,71513.0,71512.0,0.444749]
[1730203665303,0.069946,71515.0,71512.0,0.3608]
[1730203665495,0.069946,71515.0,71514.0,0.13172555]
[1730203665905,0.001,71517.0,71514.0,0.06177855]
[1730203666111,0.430741,71521.0,71520.0,0.069941]
[1730203666608,0.069941,71521.0,71520.0,0.069941]
[1730203668606,0.069941,71521.0,71520.0,0.10835916]
[1730203669112,0.070941,71521.0,71520.0,0.12235916]
[1730203670405,0.070941,71521.0,71520.0,0.097941]
[1730203670612,0.070941,71521.0,71520.0,0.154241]
[1730203671308,0.001,71521.0,71520.0,0.154241]
[1730203671902,0.069937,71525.0,71520.0,0.32698521]
[1730203672205,0.06177855,71529.0,71528.0,0.069932]
[1730203672206,0.069934,71529.0,71528.0,0.069932]
[1730203673710,0.069934,71529.0,71528.0,0.072932]
[1730203675003,0.069934,71529.0,71528.0,0.075932]
[1730203675204,0.13171255,71529.0,71528.0,0.075932]
[1730203675404,0.13171255,71529.0,71528.0,0.006]
[1730203679805,0.16596492,71529.0,71528.0,0.006]
[1730203680613,0.13171255,71529.0,71528.0,0.006]
[1730203690817,0.13171255,71529.0,71528.0,0.075934]
[1730203690818,0.069934,71529.0,71528.0,0.075934]
[1730203694620,0.069934,71529.0,71528.0,0.006]
[1730203695316,0.10418393,71529.0,71528.0,0.006]
[1730203695517,0.069934,71529.0,71528.0,0.006]
[1730203695714,0.13171255,71529.0,71528.0,0.006]
[1730203698627,0.069934,71529.0,71528.0,0.006]
[1730203698822,0.13171255,71529.0,71528.0,0.006]
[1730203699220,0.069934,71529.0,71528.0,0.006]
[1730203699619,0.069934,71529.0,71528.0,0.075934]
[1730203704120,0.069934,71529.0,71528.0,0.006]
[1730203706027,0.13171255,71529.0,71528.0,0.006]
[1730203711935,0.13171255,71529.0,71528.0,0.04773027]
[1730203712136,0.13171255,71529.0,71528.0,0.006]
[1730203713339,0.16596591,71529.0,71528.0,0.006]
[1730203713532,0.52676591,71529.0,71528.0,0.006]
[1730203720336,0.49251255,71529.0,71528.0,0.04773027]
[1730203722340,0.49251255,71529.0,71516.0,0.49289533]
[1730203722341,0.069938,71524.0,71516.0,0.00092]
[1730203722545,0.5543011,71517.0,71503.0,0.06939678]
[1730203722840,0.069959,71502.0,71501.0,0.44204]
[1730203723144,0.069959,71502.0,71492.0,0.4015]
[1730203723145,0.06177855,71504.0,71492.0,0.07027678]
[1730203723341,0.06177855,71504.0,71494.0,0.0403]
[1730203723342,0.069957,71504.0,71494.0,0.0403]
[1730203723546,0.069966,71495.0,71494.0,0.0403]
[1730203723736,0.069966,71495.0,71489.0,0.00209817]
[1730203723937,0.13174955,71490.0,71489.0,0.00209817]
[1730203724138,0.069971,71490.0,71489.0,0.00209817]
[1730203725644,0.071971,71490.0,71489.0,0.03009817]
[1730203726245,0.070971,71490.0,71489.0,0.014]
[1730203726439,0.071971,71490.0,71489.0,0.028]
[1730203728548,0.13174955,71490.0,71489.0,0.028]
[1730203732146,0.3608,71520.0,71489.0,0.57413565]
[1730203732349,0.430736,71526.0,71518.0,0.069943]
[1730203732651,0.430736,71526.0,71525.0,0.06177855]
[1730203732652,0.3608,71526.0,71525.0,0.06177855]
[1730203733044,0.3608,71534.0,71525.0,0.06177855]
[1730203733246,0.3608,71534.0,71533.0,0.069929]
[1730203734646,0.45485148,71542.0,71538.0,0.069924]
[1730203735454,0.03424668,71541.0,71538.0,0.069924]
[1730203735652,0.03424668,71540.0,71538.0,0.069924]
[1730203735845,0.03424668,71539.0,71538.0,0.069924]
[1730203736045,0.03424668,71539.0,71538.0,0.070924]
[1730203736546,0.10416968,71539.0,71538.0,0.001]
[1730203736745,0.10416968,71539.0,71533.0,0.001]
[1730203736746,0.069927,71535.0,71533.0,0.001]
[1730203736946,0.19822716,71534.0,71530.0,0.069931]
[1730203737243,0.03424668,71533.0,71530.0,0.069931]
[1730203737751,0.03424668,71533.0,71531.0,0.06993]
[1730203737948,0.09405148,71532.0,71531.0,0.06993]
[1730203738143,0.12829885,71532.0,71531.0,0.06993]
[1730203738349,0.09405148,71532.0,71531.0,0.06993]
[1730203738945,0.069931,71531.0,71530.0,0.001]
[1730203739152,0.069931,71531.0,71516.0,0.069945]
[1730203739153,0.09405148,71517.0,71516.0,0.069945]
[1730203739451,0.09405148,71521.0,71515.0,0.3608]
[1730203739648,0.09405148,71521.0,71520.0,0.069941]
[1730203740355,0.09405148,71521.0,71515.0,0.3608]
[1730203740860,0.09405148,71521.0,71515.0,0.430746]
[1730203740861,0.069945,71516.0,71515.0,0.430746]
[1730203741154,0.09405148,71517.0,71516.0,0.069945]
[1730203741349,0.16399548,71517.0,71516.0,0.069945]
[1730203741657,0.16399548,71517.0,71515.0,0.3608]
[1730203741658,0.069945,71516.0,71515.0,0.3608]
[1730203741848,0.069945,71516.0,71515.0,0.3748]
[1730203742453,0.069945,71516.0,71515.0,0.3608]
[1730203743158,0.069945,71516.0,71515.0,0.3748]
[1730203744247,0.069945,71516.0,71515.0,0.3888]
[1730203745360,0.09405148,71517.0,71515.0,0.028]
[1730203745558,0.09405148,71517.0,71515.0,0.097946]
[1730203746758,0.09405148,71517.0,71515.0,0.028]
[1730203747160,0.09405148,71517.0,71515.0,0.097946]
[1730203747360,0.16399648,71517.0,71515.0,0.014]
[1730203747656,0.09405148,71517.0,71516.0,0.069945]
[1730203748761,0.09405148,71517.0,71516.0,0.097945]
[1730203750959,0.09405148,71521.0,71516.0,0.028]
[1730203751268,0.09405148,71521.0,71519.0,0.069942]
[1730203751664,0.3608,71522.0,71521.0,0.06994]
[1730203751870,0.3608,71522.0,71521.0,0.16399148]
[1730203752467,0.0423,71527.0,71526.0,0.069936]
[1730203752662,0.471752,71530.0,71529.0,0.069933]
[1730203752663,0.36152,71530.0,71529.0,0.069933]